Cogmind - Beta 17 @@@ ROGUE MODE // 2026.07.15 @ 19:21:42 Player: shapeshifter Result: Destroyed by P-80 Master with Enhanced Quantum Rifle Performance ------------- Evolutions (7) 3500 Regions Visited (14) 2800 Robots Destroyed (191) 955 Value Destroyed (8652) 8652 Prototype IDs (37) 740 Alien Tech Used (0) 0 Bonus (18956) 18956 TOTAL SCORE: 35603 Bonus ------- High Alert Combat Kills 1820 Follower Combat Kills 886 Prayed to X0-1V1 5000 Major X0-1V1 Interference 9100 Registered with UFD 300 Met Optimus in HQ 500 Met Warlord at Base 500 MAIN.C Attacked Warlord 500 Warlord Defense Kills 1536 Friendly Fire -1186 Cogmind --------- Core Integrity 0/1250 Matter 283/300 Energy 499/500 System Corruption 14% Temperature Cool (18) Movement Core (50) Location -3/Research Parts ------- > --- POWER (3) -------- (None) > --- PROPULSION (6) --- (None) > --- UTILITY (9) ------ Advanced Coolant Injector Graphene Brace X0-1V1's Piety Tracker > --- WEAPON (3) ------- (None) > --- INVENTORY (5) ---- Matter Compressor (250) Advanced Force Field Power Bank Compact HERF Cannon Advanced Remote Datajack Peak State ------------ > --- POWER ------------ Cooled Fission Core Light Antimatter Reactor > --- PROPULSION ------- Enhanced Flexi-carbon Leg Myomer Leg Myomer Leg Heavy Armored Exoskeleton > --- UTILITY ---------- Advanced Heat Sink Advanced Cooling System Advanced Coolant Injector Medium Storage Unit Advanced Reaction Control System Improved Cloaking Device Graphene Brace Advanced Force Field X0-1V1's Piety Tracker > --- WEAPON ----------- Matter Neutralizer Matter Neutralizer > --- INVENTORY -------- Matter Compressor Quantum Capacitor Power Bank Vortex Shotgun Vortex Shotgun Matter Neutralizer Matter Neutralizer Vortex Cannon Vortex Cannon [Rating: 149] Favorites ----------- Power Cooled Antimatter Reactor Engine Deuterium Engine Power Core Cooled Fission Core Reactor Cooled Antimatter Reactor Propulsion Armored Wheel Treads Light Treads Leg Thunder Leg Wheel Armored Wheel Hover Unit Antigrav System Flight Unit Q-thruster Utility Huge Storage Unit Device Experimental Reaction Control System Storage Huge Storage Unit Processor Makeshift Targeting Computer Hackware Hacking Suite Protection Centrium Heavy Armor Plating Weapon Cooled Plasma Rifle Energy Gun Cooled Plasma Rifle Energy Cannon Matter Neutralizer Ballistic Gun Light Assault Rifle Ballistic Cannon Light Cannon Launcher Chain Missile Launcher Special Weapon Advanced Remote Datajack Impact Weapon Mace Slashing Weapon Scythe Build | -11 -10 -10 -10 -7 -7 -5 -5 -5 -5 -4 -4 -4 -4 -3 ------- Run | Yrd Mat Min Sub Rec Scr Fac Upp Upp War Pro Fac Upp Upp Res Slots Evolved 14 | . . . . . . 10 . . . . 2 . . 2 Power 1 | . . . . . . . . . . . . . . 1 Propulsion 5 | . . . . . . 3 . . . . 2 . . . Utility 7 | . . . . . . 6 . . . . . . . 1 Weapon 1 | . . . . . . 1 . . . . . . . . Parts Attached 168 | 7 5 6 10 . 4 45 1 5 15 1 41 6 2 20 Power 24 | 1 . 1 1 . 3 5 . . 4 . 4 . . 5 Engine 7 | 1 . . 1 . 2 1 . . 1 . . . . 1 Core 6 | . . 1 . . 1 3 . . 1 . . . . . Reactor 11 | . . . . . . 1 . . 2 . 4 . . 4 Propulsion 42 | 2 . 2 3 . . 12 . . 4 . 14 1 2 2 Treads 3 | 2 . . . . . . . . . . 1 . . . Leg 22 | . . . . . . 5 . . 4 . 8 1 2 2 Wheel 13 | . . 2 3 . . 4 . . . . 4 . . . Hover 2 | . . . . . . 1 . . . . 1 . . . Flight 2 | . . . . . . 2 . . . . . . . . Utility 61 | 2 3 . 2 . . 19 1 2 4 1 12 4 . 11 Device 46 | 1 2 . . . . 14 1 2 3 1 10 3 . 9 Storage 5 | 1 1 . . . . 1 . . . . . 1 . 1 Processor 4 | . . . 1 . . 1 . . 1 . 1 . . . Hackware 2 | . . . . . . 1 . . . . 1 . . . Protection 4 | . . . 1 . . 2 . . . . . . . 1 Artifact . | . . . . . . . . . . . . . . . Weapon 41 | 2 2 3 4 . 1 9 . 3 3 . 11 1 . 2 Energy Gun 8 | 1 . 1 1 . . 1 . 2 1 . 1 . . . Energy Cannon 14 | . . . . . 1 3 . 1 1 . 6 1 . 1 Ballistic Gun 10 | 1 1 2 2 . . 2 . . . . 2 . . . Ballistic Cannon 3 | . 1 . . . . 1 . . . . 1 . . . Launcher 4 | . . . . . . 2 . . 1 . 1 . . . Special Weapon 1 | . . . . . . . . . . . . . . 1 Impact Weapon . | . . . . . . . . . . . . . . . Slashing Weapon 1 | . . . 1 . . . . . . . . . . . Piercing Weapon . | . . . . . . . . . . . . . . . Special Melee Weapon . | . . . . . . . . . . . . . . . Unidentified Prototypes 12 | . 1 . . . . 1 1 . 6 . 1 . . 2 Corrupted Parts 4 | . . . . . . . . . 2 . . . 2 . System Corruption 36 | . . . . . . . . . 17 . . . 19 . Parts Lost 79 | . 1 2 2 . . 23 1 . 2 . 23 . . 25 Power 16 | . . . 2 . . 3 . . 1 . 3 . . 7 Propulsion 28 | . . 2 . . . 8 . . . . 12 . . 6 Utility 24 | . 1 . . . . 10 . . . . 6 . . 7 Weapon 11 | . . . . . . 2 1 . 1 . 2 . . 5 Highest Loss Streak 10 | . 1 1 1 . . 10 1 . 1 . 8 . . 9 To Critical Strikes 1 | . . . . . . . . . 1 . . . . . Average Backups 13 | 3 7 7 11 17 19 14 18 20 12 9 11 9 9 7 Power . | 1 1 . . . . . . . . . . . . . Propulsion . | . . . 1 1 . . 1 1 . . . . . . Utility 7 | 1 4 5 6 9 10 7 12 13 5 4 5 3 3 3 Weapon 3 | 1 1 1 2 6 3 2 1 . 3 5 5 6 6 3 Tool/Special . | . . . . . . . . . . . . . . . Unused Backups 48 | . 2 2 5 . 11 4 . . 15 1 1 3 . 4 Power 1 | . . 1 . . . . . . . . . . . . Propulsion 8 | . . . 3 . 3 . . . 2 . . . . . Utility 21 | . 2 1 2 . 2 3 . . 7 . 1 . . 3 Weapon 12 | . . . . . 6 . . . 1 1 . 3 . 1 Tool/Special 6 | . . . . . . 1 . . 5 . . . . . Average Slot Usage (%) 84 | . 99 99 76 63 91 86 86 78 92 82 74 80 81 52 Engine 5 | . 14 12 . . 16 4 . . . . . . . . Core 1 | . . 1 . . 2 3 5 . . . . 5 5 . Reactor 3 | . . . . . . 1 5 10 10 5 4 5 5 4 Treads 3 | . 28 22 . . . . . . . . 1 2 . . Leg 10 | . . . . . . 5 23 17 22 23 17 13 18 9 Wheel 7 | . . 4 22 28 28 8 . . . . 1 . . . Device 18 | . 13 14 . . . 24 24 22 28 23 22 34 36 25 Storage 8 | . 14 14 14 14 14 5 5 5 5 5 5 5 5 3 Processor 3 | . . . 3 14 14 4 . . . 5 2 . . . Protection 3 | . . . 3 . . 4 7 10 5 5 2 . . 1 Energy Gun 4 | . 12 1 10 . . . . 4 10 5 4 . . . Energy Cannon 3 | . . . . . 2 8 3 1 4 . 3 12 10 5 Ballistic Gun 3 | . 6 15 15 4 . 1 5 1 . . 2 . . . Ballistic Cannon 1 | . 8 10 . . . 1 . . . . . . . . Impact Weapon 1 | . . . . 2 11 . . . . . . . . . Peak Build Rating 149 | 7 20 23 23 15 30 103 116 124 144 144 148 140 140 149 Average Rating 80 | 4 16 19 12 13 23 81 112 107 125 143 120 131 135 117 On Entrance 74 | . 7 19 23 15 15 30 92 110 124 144 140 124 131 140 Avg Prop Armor Cover (%) 10 | . . 12 . . . 5 . . . . 9 5 . 37 Naked Turns . | . . . . . . . . . . . . . . . Heaviest Build 172 | 14 16 15 90 83 109 151 149 172 170 115 115 86 81 82 Greatest Support 168 | 40 40 40 26 24 24 91 96 96 91 91 110 138 168 168 Greatest Overweight (x) 12 | . . 1 7 3 4 12 1 2 2 1 6 . . . Average Overweight (x) 1 | . . . 2 3 3 4 1 1 1 1 . . . . Largest Inventory Capacity 25 | 8 25 8 25 25 25 25 25 25 25 15 15 15 10 10 Average Capacity 17 | 7 8 8 19 25 25 21 25 25 16 15 15 11 10 9 Most Carried 25 | 6 8 8 20 21 25 24 22 25 25 15 15 15 10 10 Average Carried 15 | 4 7 7 12 20 23 17 21 23 15 14 13 11 10 8 Final Capacity 25 | 8 8 8 25 25 25 25 25 25 15 15 15 10 10 5 Final Carried 25 | 5 8 8 20 21 25 21 22 25 15 10 15 10 10 5 Transmogrified Parts 46 | . . . . . . 14 7 6 . . 13 6 . . Integrity Recovered 1438 | . . . . . . 316 100 391 . . 511 120 . . Class Distribution -------------------- 59% | Mutant 14% | Tank 14% | Scavenger-Tank 4% | Scavenger-Mutant 3% | Hacker-Tank Dominant Class ---------------- Mutant | -10/Materials Mutant | -10/Mines Mutant | -10/Subcaves Mutant | -7/Recycling Mutant | -7/Scraptown Mutant | -5/Factory Mutant | -5/Upper Caves Mutant | -5/Upper Caves Tank | -5/Warlord Scavenger-Tank | -4/Proximity Caves Scavenger-Tank | -4/Factory Scavenger-Mutant | -4/Upper Caves Scavenger-Mutant | -4/Upper Caves Mutant | -3/Research Resources | -11 -10 -10 -10 -7 -7 -5 -5 -5 -5 -4 -4 -4 -4 -3 ----------- Run | Yrd Mat Min Sub Rec Scr Fac Upp Upp War Pro Fac Upp Upp Res Matter Collected 6011 | 275 93 605 194 . 389 1443 80 136 429 249 1691 115 45 267 Remotely . | . . . . . . . . . . . . . . . Salvage Created 7913 | 127 168 82 169 . . 2035 185 441 337 246 2586 338 . 1199 Parts 291 | 12 11 3 25 . . 77 11 13 11 5 62 11 . 50 Haulers Intercepted 5 | . 1 . . . . . . . . . 3 . . 1 Recyclers Shooed 6 | 1 . . . . . . . . . . 4 . . 1 Parts Field Recycled . | . . . . . . . . . . . . . . . Retrieved Matter . | . . . . . . . . . . . . . . . Parts Self-Destructed 48 | . . . 21 . . . 8 8 . 3 . 8 . . Prevented 10 | . . . . . . . 2 3 . . . . 5 . Parts Restored . | . . . . . . . . . . . . . . . Kills | -11 -10 -10 -10 -7 -7 -5 -5 -5 -5 -4 -4 -4 -4 -3 ------- Run | Yrd Mat Min Sub Rec Scr Fac Upp Upp War Pro Fac Upp Upp Res Combat Hostiles Destroyed 146 | . 7 . 9 . . 27 5 5 13 8 40 4 . 28 Guns 41 | . 6 . 8 . . 3 . 3 . 2 9 . . 10 Cannons 42 | . 1 . 1 . . 21 2 . . . 6 . . 11 AOE 51 | . . . . . . . 3 2 13 5 22 . . 6 Classes Destroyed 24 | 2 4 1 2 . . 6 . 1 4 2 2 . . . Worker 10 | . . 1 . . . 4 . . . . 5 . . . Builder 2 | . . . . . . 1 . . . . 1 . . . Tunneler 5 | 2 . . . . . 1 . . . . 2 . . . Hauler 5 | . 1 . . . . . . . . . 3 . . 1 Recycler 11 | 1 . 1 . . . 2 . . . . 7 . . . Minesweeper 1 | . . . . . . . . . . 1 . . . . Mechanic 1 | . . . . . . . . . 1 . . . . . Operator 1 | . . . . . . . . . . . 1 . . . Drone 2 | . . . . . . . . . . 2 . . . . Watcher 5 | . 1 . . . . 1 . . . . 3 . . . Swarmer 40 | . 4 . 8 . . 4 4 . 2 . 8 . . 10 Grunt 55 | . 3 . . . . 10 . 3 7 3 18 4 . 7 Brawler 1 | . . . . . . . . . 1 . . . . . Duelist 2 | . . . . . . . . 1 1 . . . . . Sentry 8 | . . . . . . 2 1 1 . . 1 . . 3 Specialist 2 | . . . . . . 2 . . . . . . . . Hunter 13 | . . . . . . 5 . . 1 2 5 . . . Programmer 15 | . . . . . . 3 . . . 1 4 . . 7 Heavy 2 | . . . . . . 2 . . . . . . . . Behemoth 2 | . . . . . . . . . . . 1 . . 1 Executioner 1 | . . . . . . . . . 1 . . . . . Subdweller 1 | . . . 1 . . . . . . . . . . . Scientist 1 | . . . 1 . . . . . . . . . . . Decomposer 4 | . . . . . . . 1 . . . . 3 . . Packrat 1 | . . . . . . . . 1 . . . . . . Tinkerer 1 | . . . . . . . . . 1 . . . . . Surgeon 1 | . . . . . . . . . 1 . . . . . Wasp 1 | . . . . . . . . . 1 . . . . . Thug 3 | . . . . . . . . . . . 3 . . . Wizard 1 | . . . . . . . . . 1 . . . . . Best Kill Streak 14 | 2 4 1 5 . . 7 4 4 14 3 13 4 . 8 Combat Bots Only 13 | . 4 . 5 . . 5 4 4 13 2 10 4 . 5 Max Kills in Single Turn 5 | 1 1 1 1 . . 1 2 2 4 2 5 2 . 2 Gunslinging 1 | . . . . . . . . . . . 1 . . . Exploded 4 | . . . . . . . 2 2 4 1 4 . . 2 Melee . | . . . . . . . . . . . . . . . Uniques/NPCs Destroyed . | . . . . . . . . . . . . . . . Combat | -11 -10 -10 -10 -7 -7 -5 -5 -5 -5 -4 -4 -4 -4 -3 -------- Run | Yrd Mat Min Sub Rec Scr Fac Upp Upp War Pro Fac Upp Upp Res Hostile Shots Fired 1499 | . 66 18 83 . . 346 20 31 19 40 344 14 . 518 Missed 505 | . 20 7 20 . . 100 8 10 6 23 108 . . 203 Hits 994 | . 46 11 63 . . 246 12 21 13 17 236 14 . 315 Melee 17 | . . . . . . 13 . . . 1 . . . 3 Projectile 977 | . 46 11 63 . . 233 12 21 13 16 236 14 . 312 AOE 1 | . . . . . . 1 . . . . . . . . Critical Strikes 42 | . 1 . . . . 10 . 1 3 1 14 1 . 11 Actively Blocked 18 | . . . . . . . . . . . 6 1 . 11 Part Disruptions 2 | . . . . . . 2 . . . . . . . . Damage Taken 18714 | . 502 141 606 . . 3979 256 424 485 470 4738 273 . 6840 Core 3107 | . 63 18 207 . . 572 17 38 74 . 762 79 . 1277 Absorbed by Shields 1471 | . . . . . . 658 . . . . 349 . . 464 Redirected to Shielding 1 | . . . . . . . 1 . . . . . . . Ignored by Resistances 465 | . . . 47 . . 263 . . . . 150 . . 5 Core Remaining (%) 65 | 100 . . . . 65 . . . . 74 . . 23 . Volleys Fired 506 | 5 35 13 15 . . 99 20 27 13 20 124 7 . 128 Largest 4 | 2 2 2 3 . . 4 2 2 3 1 3 3 . 2 Hottest 315 | 70 80 85 105 . . 294 123 99 164 160 315 315 . 199 Shots Fired 848 | 10 70 26 42 . . 204 26 34 18 20 239 17 . 142 Gun 394 | 10 36 19 42 . . 42 17 25 7 14 143 . . 39 Cannon 407 | . 34 7 . . . 158 6 3 2 . 78 17 . 102 Launcher 46 | . . . . . . 4 3 6 9 6 18 . . . Special 1 | . . . . . . . . . . . . . . 1 Kinetic 215 | 5 35 25 29 . . 56 17 9 . . 39 . . . Thermal 484 | 5 35 1 13 . . 144 6 16 4 14 138 17 . 91 Explosive 33 | . . . . . . . . . 9 6 18 . . . Electromagnetic 42 | . . . . . . 4 3 9 5 . 19 . . 2 Entropic 73 | . . . . . . . . . . . 25 . . 48 Robot Hit Streak 37 | 8 7 8 5 . . 22 5 8 7 9 37 5 . 12 Robot Miss Streak 8 | . 3 2 4 . . 4 1 2 3 2 5 1 . 8 Penetration Max 1 | . . . . . . 1 . . . . . . . . Secondary Targets 5 | . . . 3 . . . . . . . 2 . . . Max Gunslinging Chain 1 | . . . 1 . . . . . . . 1 . . . Capacitor 84 | . . . . . . . . . . . . . . 84 Shots Hit Robots 532 | 8 39 16 22 . . 128 8 18 8 13 170 8 . 94 Core Hits 399 | 4 14 6 13 . . 72 8 14 42 21 142 3 . 60 Critical Kills 9 | . . . . . . 3 . . . . 1 4 . 1 Critical Parts Destroyed 6 | . . . . . . 1 . 1 . . . . . 4 Critical Strikes 25 | . 2 . 1 . . 5 . 1 . 1 5 4 . 6 Burn 7 | . 2 . 1 . . 1 . . . 1 2 . . . Meltdown 7 | . . . . . . 1 . . . . 1 4 . 1 Destroy 4 | . . . . . . 3 . 1 . . . . . . Detonate 4 | . . . . . . . . . . . . . . 4 Sunder 3 | . . . . . . . . . . . 2 . . 1 Melee Attacks 7 | . . . 7 . . . . . . . . . . . Impact . | . . . . . . . . . . . . . . . Slashing 7 | . . . 7 . . . . . . . . . . . Piercing . | . . . . . . . . . . . . . . . Sneak Attacks . | . . . . . . . . . . . . . . . Combat Hostiles . | . . . . . . . . . . . . . . . Follow-up Attacks . | . . . . . . . . . . . . . . . Damage Inflicted 29824 | 83 768 210 368 . . 4223 382 633 4051 1423 11253 323 . 6107 Guns 6823 | 83 294 112 246 . . 595 94 354 58 229 2614 . . 2144 Cannons 9823 | . 313 93 58 . . 3467 186 27 54 . 2665 323 . 2637 Explosions 12979 | . 158 . . . . 160 102 252 3939 1194 5918 . . 1256 Melee 60 | . . . 60 . . . . . . . . . . . Ramming 139 | . 3 5 4 . . 1 . . . . 56 . . 70 Kinetic 2432 | 20 313 187 220 . . 884 94 137 . . 577 . . . Thermal 10757 | 63 294 18 84 . . 3178 186 217 44 229 3263 323 . 2858 Explosive 11101 | . 158 . . . . . . . 3939 1194 5355 . . 455 Electromagnetic 1139 | . . . . . . 160 102 279 68 . 459 . . 71 Impact . | . . . . . . . . . . . . . . . Slashing 60 | . . . 60 . . . . . . . . . . . Piercing . | . . . . . . . . . . . . . . . Entropic 4196 | . . . . . . . . . . . 1543 . . 2653 Highest Corruption 39 | . . . 32 13 . 5 . . 10 1 2 20 39 14 Average Corruption 8 | . . . 17 13 . 4 . . 7 1 1 15 28 10 Corruption Purged 5 | . . . . . . 5 . . . . . . . . Corruption Blocked . | . . . . . . . . . . . . . . . Effects 91 | . . . 12 3 . 14 . . 6 . 10 19 2 25 Message Errors 21 | . . . 3 2 . 2 . . 1 . 1 7 1 4 Matter Fused 22 | . . . 3 1 . 4 . . 1 . 3 4 . 6 Heat Flow Errors 9 | . . . . . . 2 . . . . 3 4 . . Energy Discharges 15 | . . . 4 . . 3 . . . . 1 2 1 4 Parts Rejected 2 | . . . . . . . . . . . . . . 2 Parts Fused 2 | . . . . . . . . . 1 . . . . 1 Data Loss (minor) 6 | . . . . . . . . . 3 . 2 1 . . Data Loss (major) 6 | . . . . . . 2 . . . . . 1 . 3 Misfires 4 | . . . 2 . . . . . . . . . . 2 Alerts 1 | . . . . . . . . . . . . . . 1 Misdirections 1 | . . . . . . . . . . . . . . 1 Weapon Failures 2 | . . . . . . 1 . . . . . . . 1 Overload Shots 1 | . . . . . . . . . 1 . . . . . Overflow Damage 852 | . 8 . . . . 17 . . 226 . 388 53 . 160 Projectiles 245 | . 8 . . . . 17 . . . . 94 53 . 73 Explosions 591 | . . . . . . . . . 226 . 278 . . 87 Melee 16 | . . . . . . . . . . . 16 . . . Knockbacks 25 | . 7 1 . . . 10 . . . . 4 . . 3 Impact 4 | . . . . . . . . . . . 2 . . 2 Kinetic 17 | . 6 1 . . . 8 . . . . 2 . . . Secondary 4 | . 1 . . . . 2 . . . . . . . 1 Self-Inflicted Damage 1039 | . 72 1 2 . . . . . 69 206 369 . . 320 Shots 16 | . 1 . . . . . . . 1 4 6 . . 4 Rammed 11 | . 1 2 1 . . . . . . . . . . 7 Targets Rammed 25 | . 1 2 1 . . 1 . . . . 2 . . 18 Kicked 14 | . . . . . . 1 . . . . 2 . . 11 Crushed . | . . . . . . . . . . . . . . . Highest Temperature 635 | 40 241 48 51 . . 493 264 60 14 9 635 198 . 196 Average Temperature 118 | 18 78 12 20 . . 152 133 34 7 6 158 80 . 83 Received Heat Transfer 2750 | . 81 54 102 . . 893 36 171 12 21 643 48 . 689 Effects 24 | . . . . . . 6 . . . . 18 . . . Shutdowns 6 | . . . . . . 3 . . . . 3 . . . Interference 8 | . . . . . . . . . . . 8 . . . Matter Decay 1 | . . . . . . 1 . . . . . . . . Short Circuit 2 | . . . . . . . . . . . 2 . . . Damage (minor) 2 | . . . . . . 2 . . . . . . . . Damage (major) 4 | . . . . . . . . . . . 4 . . . Damage (core) 1 | . . . . . . . . . . . 1 . . . Siege Activations . | . . . . . . . . . . . . . . . Martial Activations . | . . . . . . . . . . . . . . . Shielding Activations . | . . . . . . . . . . . . . . . Robots Disrupted 4 | . . . . . . . . . . . 3 . . 1 Combat Hostiles 2 | . . . . . . . . . . . 1 . . 1 Robots Corrupted 2 | . . . . . . 1 . . . . 1 . . . Combat Hostiles . | . . . . . . . . . . . . . . . Parts Fried 6 | . . . . . . 1 . . . . 5 . . . Impact Corruptions 2 | . . . . . . 1 . . . . 1 . . . Robots Melted 15 | . . . . . . 5 . . . 1 4 4 . 1 Combat Hostiles 12 | . . . . . . 3 . . . 1 3 4 . 1 Parts Melted 54 | . . . . . . 30 . 1 . 1 11 7 . 4 Heat Transferred 14079 | 185 1036 37 259 . . 4031 161 450 100 550 4582 333 . 2355 Parts Sabotaged . | . . . . . . . . . . . . . . . Parts Stolen . | . . . . . . . . . . . . . . . Parts Stripped . | . . . . . . . . . . . . . . . Power Chain Reactions 2 | . . . . . . . . 1 . . 1 . . . Alert | -11 -10 -10 -10 -7 -7 -5 -5 -5 -5 -4 -4 -4 -4 -3 ------- Run | Yrd Mat Min Sub Rec Scr Fac Upp Upp War Pro Fac Upp Upp Res Maximum Alert Level 4 | . 1 . . . . 1 . . . . 4 . . 4 Low Security (%) 58 | 100 88 100 . 100 . 84 . . . . 19 . . . Level 1 13 | . 11 . . . . 15 . . . . 30 . . 1 Level 2 5 | . . . . . . . . . . . 16 . . 9 Level 3 9 | . . . . . . . . . . . 16 . . 34 Level 4 12 | . . . . . . . . . . . 18 . . 54 Level 5 . | . . . . . . . . . . . . . . . High Security . | . . . . . . . . . . . . . . . Max Security . | . . . . . . . . . . . . . . . Peak Influence 1397 | 5 254 104 . 156 . 229 . . . . 1397 . . 1344 Initial 411 | . . 84 . 18 . . . . . . 33 . . 411 Average 317 | 1 53 42 . 115 . 70 . . . . 539 . . 988 Influence Increases 6500 | 15 445 352 170 138 . 847 110 110 265 170 2111 90 56 1621 Destroy 0b10 Robot/C 3320 | . 140 240 160 . . 560 100 100 260 120 880 80 40 640 Destroy 0b10 Robot/NC 240 | 15 10 10 . . . 55 . . 5 15 110 . . 20 Destroy Leader 518 | . 24 40 10 . . 134 10 10 . 20 158 10 10 92 Allied During Kill 105 | . . 32 . . . 12 . . . . 24 . 6 31 Successful Hack 65 | . 21 . . . . 5 . . . . 31 . . 8 Disable Machine 345 | . 15 . . . . 15 . . . . 300 . . 15 Anti-Garrison Action 200 | . . . . . . . . . . . 200 . . . Destroy Structure 636 | . 16 . . . . 66 . . . . 408 . . 146 Partial Spotted 15 | . 15 . . . . . . . . . . . . . Lose Combat Pursuer 180 | . . 30 . . . . . . . 15 . . . 135 Miscellaneous 876 | . 204 . . 138 . . . . . . . . . 534 Influence Decreases 5218 | 15 227 532 170 50 126 629 308 100 54 357 784 774 143 949 Entered New Map 1523 | . . 134 21 20 126 . 82 4 30 241 21 512 133 199 Time Decay 2647 | 15 207 328 139 30 . 311 216 96 24 116 513 262 10 380 Lost Part 718 | . 10 10 10 . . 198 10 . . . 230 . . 250 Lost Ally 330 | . 10 60 . . . 120 . . . . 20 . . 120 Squads Dispatched 35 | . 1 3 . . . 10 . . . . 10 . . 11 Investigation 12 | . 1 2 . . . 3 . . . . 3 . . 3 Extermination 8 | . . . . . . 3 . . . . 2 . . 3 Reinforcement 9 | . . . . . . 4 . . . . 3 . . 2 Assault 5 | . . 1 . . . . . . . . 2 . . 2 Garrison 1 | . . . . . . . . . . . . . . 1 Intercept . | . . . . . . . . . . . . . . . Searches Triggered . | . . . . . . . . . . . . . . . Construction Impeded 2 | . . . . . . . . . . . 2 . . . Haulers Reinforced . | . . . . . . . . . . . . . . . Active Scanning Responses . | . . . . . . . . . . . . . . . Cargo Convoy Interrupts 1 | . . . . . . 1 . . . . . . . . Stealth | -11 -10 -10 -10 -7 -7 -5 -5 -5 -5 -4 -4 -4 -4 -3 --------- Run | Yrd Mat Min Sub Rec Scr Fac Upp Upp War Pro Fac Upp Upp Res Distress Signals 10 | . 1 . . . . 1 . . 1 . 1 . . 6 Communications Jammed . | . . . . . . . . . . . . . . . Distress Signals . | . . . . . . . . . . . . . . . Times Spotted 260 | . 15 15 23 . . 37 5 5 25 9 55 4 2 65 Peak Tracking Total 13 | . 7 3 6 . . 11 3 4 9 4 6 4 2 13 Tactical Retreats 13 | . . 2 . . . 4 . . . 1 . . . 6 ECM-based Alert Blocks 6 | . . . . . . 6 . . . . . . . . Traps | -11 -10 -10 -10 -7 -7 -5 -5 -5 -5 -4 -4 -4 -4 -3 ------- Run | Yrd Mat Min Sub Rec Scr Fac Upp Upp War Pro Fac Upp Upp Res Traps Triggered 5 | . . . . . . 2 . . . . 1 . . 2 Indirectly . | . . . . . . . . . . . . . . . Trap Hack Attempts . | . . . . . . . . . . . . . . . Triggered . | . . . . . . . . . . . . . . . Disarmed . | . . . . . . . . . . . . . . . Reprogrammed . | . . . . . . . . . . . . . . . Reused . | . . . . . . . . . . . . . . . Traps Extracted . | . . . . . . . . . . . . . . . Installed . | . . . . . . . . . . . . . . . Triggered . | . . . . . . . . . . . . . . . Machines | -11 -10 -10 -10 -7 -7 -5 -5 -5 -5 -4 -4 -4 -4 -3 ---------- Run | Yrd Mat Min Sub Rec Scr Fac Upp Upp War Pro Fac Upp Upp Res Machines Disabled 25 | . 1 . 1 . . 1 . . 1 . 20 . . 1 Max in Single Turn 5 | . 1 . 1 . . 1 . . 1 . 5 . . 1 Garrison Access 2 | . . . . . . . . . . . 2 . . . Machines Repaired . | . . . . . . . . . . . . . . . Machines Dismantled . | . . . . . . . . . . . . . . . Machines Sabotaged . | . . . . . . . . . . . . . . . Overloaded Fab Kills . | . . . . . . . . . . . . . . . Hacking | -11 -10 -10 -10 -7 -7 -5 -5 -5 -5 -4 -4 -4 -4 -3 --------- Run | Yrd Mat Min Sub Rec Scr Fac Upp Upp War Pro Fac Upp Upp Res Machines Accessed 37 | . 7 1 2 . 2 8 . . 1 . 9 . . 7 Terminals 16 | . 7 . . . . 1 . . . . 3 . . 5 Fabricators 5 | . . . . . . 4 . . . . 1 . . . Repair Stations . | . . . . . . . . . . . . . . . Recycling Units 6 | . . . . . . 2 . . . . 2 . . 2 Scanalyzers 2 | . . . . . . 1 . . . . 1 . . . Garrison Access 2 | . . . . . . . . . . . 2 . . . Total Hacks 73 | . 16 1 5 . 8 13 . . 1 . 17 . . 12 Successful 41 | . 7 1 5 . 8 8 . . 1 . 8 . . 3 Failed 32 | . 9 . . . . 5 . . . . 9 . . 9 Catastrophic 9 | . . . . . . 1 . . . . 3 . . 5 Database Lockouts . | . . . . . . . . . . . . . . . Manual 37 | . 17 . . . . 7 . . . . 7 . . 6 Terminals 30 | . 16 . . . . 2 . . . . 4 . . 8 Fabricators 8 | . . . . . . 7 . . . . 1 . . . Repair Stations . | . . . . . . . . . . . . . . . Recycling Units 10 | . . . . . . 3 . . . . 3 . . 4 Scanalyzers 4 | . . . . . . 1 . . . . 3 . . . Garrison Access 6 | . . . . . . . . . . . 6 . . . Terminal Hacks 18 | . 1 1 5 . 8 . . . 1 . 1 . . 1 Record 8 | . . . 4 . 4 . . . . . . . . . Robot Analysis 4 | . . . . . 4 . . . . . . . . . Open Door 2 | . . 1 . . . . . . 1 . . . . . Open DSF 1 | . . . . . . . . . . . 1 . . . Branch Access Points 2 | . 1 . . . . . . . . . . . . 1 Proto ID Catalog 1 | . . . 1 . . . . . . . . . . . Fabricator Hacks 3 | . . . . . . 3 . . . . . . . . Network Status 2 | . . . . . . 2 . . . . . . . . Build 1 | . . . . . . 1 . . . . . . . . Repair Station Hacks . | . . . . . . . . . . . . . . . Recycling Unit Hacks . | . . . . . . . . . . . . . . . Scanalyzer 2 | . . . . . . . . . . . 2 . . . Retrieve Study 2 | . . . . . . . . . . . 2 . . . Garrison Access Hacks 1 | . . . . . . . . . . . 1 . . . Seal Access 1 | . . . . . . . . . . . 1 . . . Unauthorized Hacks 17 | . 6 . . . . 5 . . . . 4 . . 2 Terminals 8 | . 6 . . . . 1 . . . . 1 . . . Track 1 | . . . . . . 1 . . . . . . . . Assimilate 1 | . 1 . . . . . . . . . . . . . Botnet 1 | . . . . . . . . . . . 1 . . . Skim 5 | . 5 . . . . . . . . . . . . . Fabricators 2 | . . . . . . 2 . . . . . . . . Liberate 1 | . . . . . . 1 . . . . . . . . Haulers 1 | . . . . . . 1 . . . . . . . . Repair Stations . | . . . . . . . . . . . . . . . Recycling Units 6 | . . . . . . 2 . . . . 2 . . 2 Fedlink 6 | . . . . . . 2 . . . . 2 . . 2 Scanalyzers . | . . . . . . . . . . . . . . . Garrison Access 1 | . . . . . . . . . . . 1 . . . Jam 1 | . . . . . . . . . . . 1 . . . Data Cores Recovered . | . . . . . . . . . . . . . . . Used . | . . . . . . . . . . . . . . . Hacking Detections 24 | . 6 . . . . 6 . . . . 7 . . 5 Full Trace Events 2 | . . . . . . 1 . . . . . . . 1 Feedback Events . | . . . . . . . . . . . . . . . Feedback Blocked . | . . . . . . . . . . . . . . . Robot Schematics Acquired . | . . . . . . . . . . . . . . . Robots Built . | . . . . . . . . . . . . . . . Authchips . | . . . . . . . . . . . . . . . Time . | . . . . . . . . . . . . . . . Total Robot Build Rating . | . . . . . . . . . . . . . . . Part Schematics Acquired . | . . . . . . . . . . . . . . . Parts Built 2 | . . . . . . 2 . . . . . . . . Authchips . | . . . . . . . . . . . . . . . Time 64 | . . . . . . 64 . . . . . . . . Total Part Build Rating 16 | . . . . . . 16 . . . . . . . . Part Studies Acquired 2 | . . . . . . . . . . . 2 . . . Parts Repaired . | . . . . . . . . . . . . . . . Time . | . . . . . . . . . . . . . . . Parts Recycled . | . . . . . . . . . . . . . . . Recycled Matter . | . . . . . . . . . . . . . . . Retrieved Matter . | . . . . . . . . . . . . . . . Retrieved Components . | . . . . . . . . . . . . . . . Parts Scanalyzed . | . . . . . . . . . . . . . . . Part Schematics Acquired . | . . . . . . . . . . . . . . . Parts Damaged . | . . . . . . . . . . . . . . . Bothacking | -11 -10 -10 -10 -7 -7 -5 -5 -5 -5 -4 -4 -4 -4 -3 ------------ Run | Yrd Mat Min Sub Rec Scr Fac Upp Upp War Pro Fac Upp Upp Res Used RIF Installer . | . . . . . . . . . . . . . . . Robots Hacked . | . . . . . . . . . . . . . . . Non-combat . | . . . . . . . . . . . . . . . Combat . | . . . . . . . . . . . . . . . Robot Hacks Applied . | . . . . . . . . . . . . . . . Relay Couplers Released . | . . . . . . . . . . . . . . . Fabnet Peak Effective % . | . . . . . . . . . . . . . . . Robots Rewired 1 | . . . . . . . . . . . . . . 1 Allies Hacked 1 | . . . . . . 1 . . . . . . . . Hacks Repelled . | . . . . . . . . . . . . . . . Allies | -11 -10 -10 -10 -7 -7 -5 -5 -5 -5 -4 -4 -4 -4 -3 -------- Run | Yrd Mat Min Sub Rec Scr Fac Upp Upp War Pro Fac Upp Upp Res Total Allies 22 | . 1 3 1 . . 8 . . . . 1 . 1 7 Largest Group 4 | . 1 3 1 . . 4 . . . . 1 . 1 4 Highest-Rated Group 200 | . 10 40 90 . . 188 . . . . 99 . 146 200 Highest-Rated Ally 146 | . 10 16 90 . . 47 . . . . 99 . 146 116 Initial UFD Resources 74 | . . . . . . 38 52 52 52 56 56 70 70 74 Total Orders . | . . . . . . . . . . . . . . . Ally Attacks 124 | . . 44 9 . . 17 . . . . 20 . 6 28 Total Damage 3447 | . . 441 352 . . 422 . . . . 714 . 351 1167 Kills 30 | . . 12 3 . . 2 . . . . 4 . 2 7 Allies Corrupted . | . . . . . . . . . . . . . . . Allies Melted 1 | . . . . . . 1 . . . . . . . . X0-1V1 Amusement Gains 273 | . 19 . . . . 20 5 7 91 . 51 3 . 77 Good Acts 84 | . 4 2 28 3 . 17 2 2 4 3 10 1 . 8 Bad Acts 88 | . 3 7 37 2 . 1 2 1 1 . 12 4 . 18 Intel | -11 -10 -10 -10 -7 -7 -5 -5 -5 -5 -4 -4 -4 -4 -3 ------- Run | Yrd Mat Min Sub Rec Scr Fac Upp Upp War Pro Fac Upp Upp Res Active Infowar (turns) 6303 | 38 195 . . . . 1436 403 436 1560 754 1053 278 32 118 A.S.S. 401 | . . . . . . . 401 . . . . . . . Traps 420 | . . . . . . 420 . . . . . . . . Seismic 233 | 38 195 . . . . . . . . . . . . . Decoding 693 | . . . . . . 640 53 . . . . . . . Cloaking 3765 | . . . . . . . . 436 1560 754 939 . . 76 ECM 1630 | . . . . . . 821 311 . . . 114 278 32 74 Robot Analysis Total 4 | . . . . . 4 . . . . . . . . . Derelict Logs Recovered 10 | . . 3 2 . 2 . . 1 . 1 . 1 . . Drone Launches . | . . . . . . . . . . . . . . . Drone Recoveries . | . . . . . . . . . . . . . . . Decoded 0b10 Intel 12 | . . . . . . 12 . . . . . . . . Patrols 5 | . . . . . . 5 . . . . . . . . Reinforcements 4 | . . . . . . 4 . . . . . . . . Guards 3 | . . . . . . 3 . . . . . . . . Exploration | -11 -10 -10 -10 -7 -7 -5 -5 -5 -5 -4 -4 -4 -4 -3 ------------- Run | Yrd Mat Min Sub Rec Scr Fac Upp Upp War Pro Fac Upp Upp Res Turns Passed 13716 | 141 1007 884 620 62 2239 1606 725 986 1560 754 1646 562 32 892 Spaces Moved 7169 | 85 343 507 396 46 1507 702 343 328 775 408 799 402 16 512 Core 156 | 32 . . . . . . . . . . . . . 124 Treads 779 | 53 343 359 . . . . . . . . 24 . . . Legs 3527 | . . . . . . 178 343 328 775 408 689 402 16 388 Wheels 2707 | . . 148 396 46 1507 524 . . . . 86 . . . Hover . | . . . . . . . . . . . . . . . Flight . | . . . . . . . . . . . . . . . Fastest Speed 50 | 50 160 90 90 135 135 117 195 197 97 172 97 120 125 50 Average Speed 157 | 118 160 140 128 135 145 170 196 275 186 172 143 127 125 112 Slowest Speed 296 | 160 160 160 195 135 150 270 197 296 296 172 260 130 126 140 Overloaded Moves . | . . . . . . . . . . . . . . . Propulsion Burnouts . | . . . . . . . . . . . . . . . Robots Hopped . | . . . . . . . . . . . . . . . Potential Cave-ins . | . . . . . . . . . . . . . . . Cave-ins Triggered . | . . . . . . . . . . . . . . . Exploration Rate (%) 44 | 4 61 96 38 14 84 15 58 54 88 62 21 47 2 27 Regions Visited 14 Branch Regions 10 Pre-discovered Areas 2 | . . . . . 1 1 . . . . . . . . Known Exits Taken 7 | . 1 . 1 1 . 1 . . 1 1 . . 1 . Unknown Exits Taken 7 | 1 . 1 . . 1 . 1 1 . . 1 1 . . Scrap Searched 14 | . . 1 1 . 7 . . 2 . 2 . 1 . . Spaces Dug 20 | . . . . . . 6 6 . . . . 1 . 7 Terrain Destroyed 720 | . 20 . . . . 37 10 2 122 194 246 8 . 81 Melee . | . . . . . . . . . . . . . . . Projectile 105 | . . . . . . 37 10 . . 2 20 8 . 28 AOE 615 | . 20 . . . . . . 2 122 192 226 . . 53 Terrain Rammed . | . . . . . . . . . . . . . . . Walls Destroyed . | . . . . . . . . . . . . . . . Machines Disabled . | . . . . . . . . . . . . . . . Actions | -11 -10 -10 -10 -7 -7 -5 -5 -5 -5 -4 -4 -4 -4 -3 --------- Run | Yrd Mat Min Sub Rec Scr Fac Upp Upp War Pro Fac Upp Upp Res Total 8924 | 116 730 656 477 46 1564 938 369 379 878 436 1089 446 28 772 Wait 628 | 9 336 119 13 . 7 26 1 8 23 3 37 . 8 38 Move 7155 | 84 342 506 395 45 1506 701 342 327 774 407 798 401 15 512 Hop . | . . . . . . . . . . . . . . . Pick Up 180 | 11 6 4 18 . 27 30 1 6 14 2 34 9 . 18 Fast Attach 58 | 1 1 2 2 . 1 14 . 1 7 . 17 4 2 6 Attach 127 | 6 . 1 6 . 1 34 1 5 4 1 40 2 . 26 Detach 31 | . . . . . . 6 2 2 1 . 14 1 . 5 Swap 47 | . 5 4 7 . 2 6 2 1 9 . 2 3 1 5 Drop 148 | . 4 5 13 1 20 15 . 2 33 3 21 19 2 10 Fire 506 | 5 35 13 15 . . 99 20 27 13 20 124 7 . 128 Melee 7 | . . . 7 . . . . . . . . . . . Ram 10 | . . 1 1 . . . . . . . . . . 8 Kick 14 | . . . . . . 1 . . . . 2 . . 11 Crush 2 | . 1 1 . . . . . . . . . . . . Escape Stasis 10 | . . . . . . 5 . . . . . . . 5 Rewire 1 | . . . . . . 1 . . . . . . . . Trap . | . . . . . . . . . . . . . . . Miscellaneous . | . . . . . . . . . . . . . . . Route ------- -11/Scrapyard -10/Materials (discovered 6 exits: *Mat x3 / *Min x2 / *Sub) -10/Mines (discovered 3 exits: *Mat x2 / *Sub) -10/Subcaves (discovered 2 exits: Mat / *Rec) -7/Recycling -7/Scraptown (discovered 2 exits: *Fac x2) -5/Factory (discovered 4 exits: *Fac x3 / *Upp) -5/Upper Caves -5/Upper Caves -5/Warlord -4/Proximity Caves -4/Factory (discovered 4 exits: *Res x3 / [*Upp]) -4/Upper Caves -4/Upper Caves (discovered 2 exits: *Res x2) -3/Research (discovered 2 exits: Tes x2) History --------- Turn | Location | Event 7 | -11/Scrapyard | Discovered new exit (range 16) 142 | -11/Scrapyard | Entered Materials 235 | -10/Materials | Discovered new exit (range 10) 314 | -10/Materials | Build established: Mutant 336 | -10/Materials | Prayed at D.C.S.S. Altar Unit 566 | -10/Materials | Core integrity permanently improved by X0-1V1 (+200) 769 | -10/Materials | Identified exit to Mines 785 | -10/Materials | Discovered new exit (range 12) 936 | -10/Materials | Learned Storage terminal intel 959 | -10/Materials | X0-1V1 activates XOMVISION 985 | -10/Materials | Identified exit to Materials 1038 | -10/Materials | X0-1V1 added 0b10 threat records associated with you (considerable) 1051 | -10/Materials | Learned location of 2 exits from Subcaves 1069 | -10/Materials | Learned Storage stockpile data 1078 | -10/Materials | Learned location of 2 exits from Subcaves 1099 | -10/Materials | Learned Storage garrison access intel 1129 | -10/Materials | Loaded intel: 15 trap records 1149 | -10/Materials | Entered Mines 1161 | -10/Mines | Discovered exit to Materials (range 7) 1173 | -10/Mines | Learned Materials security intel 1289 | -10/Mines | Assisted by bots powering up and referring to "LRC-V3" 1297 | -10/Mines | Energy capacity permanently improved by X0-1V1 (+400; -200 max core) 1317 | -10/Mines | Discovered exit to Materials (range 16) 1482 | -10/Mines | Discovered new exit (range 8) 1501 | -10/Mines | Learned Materials emergency access door positions 1545 | -10/Mines | Met a Derelict shopkeep closing up shop 1998 | -10/Mines | Learned Materials stockpile data 2033 | -10/Mines | Entered Subcaves 2034 | -10/Subcaves | Approached by a straggling Scientist 2034 | -10/Subcaves | Ranged accuracy permanently improved by X0-1V1 (+5%; -50 max core) 2034 | -10/Subcaves | Identified exit to Materials 2034 | -10/Subcaves | Identified exit to Recycling 2040 | -10/Subcaves | X0-1V1 mutated your Propulsion slot to Weapon slot 2047 | -10/Subcaves | System corruption reached 10% 2050 | -10/Subcaves | X0-1V1 sent hostile S-10 Pest (x5) 2086 | -10/Subcaves | X0-1V1 activates XOMVISION 2108 | -10/Subcaves | Learned Materials emergency access door positions 2153 | -10/Subcaves | X0-1V1 sent allied H-61 Shepherd (x1) 2194 | -10/Subcaves | X0-1V1 mutated your Utility slot to Power slot 2213 | -10/Subcaves | Visited 4L-MR0's lab 2223 | -10/Subcaves | Found Power Bank 2228 | -10/Subcaves | Found Prototype Device 2250 | -10/Subcaves | X0-1V1 tapped a No Entrance sign 2274 | -10/Subcaves | X0-1V1 mutated your Weapon slot to Propulsion slot 2276 | -10/Subcaves | X0-1V1 rewrote H-61 Shepherd IFF filter 2291 | -10/Subcaves | Core integrity fell below 50% 2294 | -10/Subcaves | System corruption reached 30% 2337 | -10/Subcaves | X0-1V1 activates XOMVISION 2350 | -10/Subcaves | Core integrity restored by X0-1V1 (+56) 2486 | -10/Subcaves | X0-1V1 mutated your Weapon slot to Utility slot 2542 | -10/Subcaves | Visited Clippyterm 2546 | -10/Subcaves | Learned Research machine intel 2574 | -10/Subcaves | X0-1V1 sent you into danger 2591 | -10/Subcaves | Core integrity restored by X0-1V1 (+48) 2641 | -10/Subcaves | Shifting Twisted Machinery released Spk. Treads 2645 | -10/Subcaves | X0-1V1 sent you into danger 2653 | -10/Subcaves | Entered Recycling 2660 | -7/Recycling | Identified exit to Scraptown 2660 | -7/Recycling | X0-1V1 revealed exit location to -7/Scraptown 2666 | -7/Recycling | X0-1V1 added 0b10 threat records associated with you (minor) 2680 | -7/Recycling | Core integrity restored by X0-1V1 (+34) 2682 | -7/Recycling | Scanned before Scraplab entrance 2701 | -7/Recycling | Entered Scraplab 2715 | -7/Recycling | Entered Scraptown 2715 | -7/Scraptown | System corruption cleaned by C-Scrubber 2879 | -7/Scraptown | Visited TADAMA 2907 | -7/Scraptown | Visited Comm Corps 2924 | -7/Scraptown | Visited Symbiants 2943 | -7/Scraptown | Visited The Evicted 2956 | -7/Scraptown | Visited Fellowship of the Rings 2973 | -7/Scraptown | Visited SPCMW 2997 | -7/Scraptown | Visited Bundlers 3069 | -7/Scraptown | Visited UFD Registry 3069 | -7/Scraptown | Registered with UFD as "Nullback" 3096 | -7/Scraptown | Visited Scrap Suit Storage 3115 | -7/Scraptown | Visited Abandonware Association 3126 | -7/Scraptown | Learned abandonware demo "OVRCLOCK.EXE" 3131 | -7/Scraptown | Learned abandonware demo "SHUTEYE.EXE" 3161 | -7/Scraptown | Visited Derelict Rescue Squad 3169 | -7/Scraptown | Found DRS Beacon 3191 | -7/Scraptown | Visited Scrapoid Research Area 3209 | -7/Scraptown | Visited Scrapoid Pod Storage 3224 | -7/Scraptown | Received an X-ray algorithm 3244 | -7/Scraptown | Found Scrapoid Pod 3266 | -7/Scraptown | Visited Analyses Database 3289 | -7/Scraptown | Visited Chapter 10 3308 | -7/Scraptown | Visited DA-N13 Charitable Foundation 3322 | -7/Scraptown | Found DCF Scrap (29 items) 3408 | -7/Scraptown | Visited Junk Repository 3639 | -7/Scraptown | Delivered Scrap Shield to a Scientist 4276 | -7/Scraptown | Scanned Subdweller tech in exchange for log data 4280 | -7/Scraptown | Learned location of Extension (-6) 4282 | -7/Scraptown | Learned 8 Factory zone layouts 4295 | -7/Scraptown | Discovered new exit (range 13) 4873 | -7/Scraptown | Met Optimus 4873 | -7/Scraptown | Accepted into 0bPrime 4945 | -7/Scraptown | Discovered new exit (range 5) 4954 | -7/Scraptown | Entered Factory 4954 | -5/Factory | Evolved 10 slots: Propulsion x3, Utility x6, Weapon x1 4955 | -5/Factory | Identified exit to Upper Caves 5355 | -5/Factory | Fabricated Q-thruster? 5377 | -5/Factory | Identified Sfc. Transmogrifier 5501 | -5/Factory | Lost 7 parts (1p1n4u1w) 5528 | -5/Factory | X0-1V1 activates XOMVISION 5536 | -5/Factory | X0-1V1 foreshadows a heat wave 5603 | -5/Factory | Loaded intel: 8 recycling unit locations 5805 | -5/Factory | Identified exit to Factory 5805 | -5/Factory | X0-1V1 revealed exit location to -4/Factory 5826 | -5/Factory | Ambient heat levels rising (+10) 5896 | -5/Factory | Lgt. Antimatter Reactor reconfigured into Item Mimic 5904 | -5/Factory | Weapon slot count temporarily expanded by X0-1V1 (+2) 5923 | -5/Factory | Cargo convoy interrupted 5924 | -5/Factory | X0-1V1 turns hostiles against one another 5952 | -5/Factory | Lost 10 parts (2p4n4u) 6013 | -5/Factory | Learned location of Protoforge (-2) 6084 | -5/Factory | Ambient heat levels rising (+10) 6187 | -5/Factory | P-70 Sage assimilated allied G-50 Soldier 6201 | -5/Factory | X0-1V1 sent you to a vault 6244 | -5/Factory | Discovered exit to Factory (range 7) 6275 | -5/Factory | Lost 4 allies 6284 | -5/Factory | Lost 3 parts (2n1u) 6340 | -5/Factory | Ambient heat levels falling (-10) 6375 | -5/Factory | Found Corrupted Prototype Device 6472 | -5/Factory | X0-1V1 revealed exit location to -4/Factory 6476 | -5/Factory | Core integrity fell below 50% 6506 | -5/Factory | Ambient heat levels falling (-10) 6542 | -5/Factory | Found Prototype Device 6560 | -5/Factory | Entered Upper Caves 6562 | -5/Upper Caves | UFD Scientist delivered a prototype 6562 | -5/Upper Caves | Identified Active Sensor Suite 6565 | -5/Upper Caves | Found Prototype Protection 6718 | -5/Upper Caves | X0-1V1 activates XOMVISION 7011 | -5/Upper Caves | Encountered a Warlord checkpoint 7118 | -5/Upper Caves | Attracted the attention of an 0b10 checkpoint 7260 | -5/Upper Caves | Discovered new exit (range 7) 7285 | -5/Upper Caves | Entered another Upper Caves area 7341 | -5/Upper Caves | X0-1V1 mutated your Propulsion slot to Weapon slot 7383 | -5/Upper Caves | Core integrity restored by X0-1V1 (+152) 7887 | -5/Upper Caves | Learned location of 1 exit from Factory 7952 | -5/Upper Caves | Attracted the attention of an 0b10 checkpoint 7996 | -5/Upper Caves | Discovered new exit (range 16) 8106 | -5/Upper Caves | Core integrity restored by X0-1V1 (+152) 8173 | -5/Upper Caves | Found DCF Scrap (12 items) 8271 | -5/Upper Caves | Entered Warlord 8368 | -5/Warlord | Build established: Tank 8377 | -5/Warlord | System corruption cleaned by Quarantine Array 8382 | -5/Warlord | System corruption reached 10% 8425 | -5/Warlord | System corruption cleaned by Quarantine Array 8958 | -5/Warlord | Visited the Vortex Lab 8961 | -5/Warlord | Warlord's base attacked by MAIN.C 8974 | -5/Warlord | Found Prototype Energy Cannon 8977 | -5/Warlord | Found Prototype Energy Cannon 8984 | -5/Warlord | Found Prototype Energy Gun 8985 | -5/Warlord | Identified Vortex Cannon (x2) 8988 | -5/Warlord | Identified Vortex Shotgun 8994 | -5/Warlord | Found Vortex Shotgun 9217 | -5/Warlord | Rebuked by Warlord 9311 | -5/Warlord | Warlord forces counterattacked 9325 | -5/Warlord | Lost 3 allies 9332 | -5/Warlord | Found Prototype Hackware 9338 | -5/Warlord | Found Prototype Device 9346 | -5/Warlord | Identified Exp. Focal Shield 9350 | -5/Warlord | Found Prototype Reactor 9434 | -5/Warlord | Core integrity restored by X0-1V1 (+152) 9453 | -5/Warlord | Identified exit to Proximity Caves 9453 | -5/Warlord | X0-1V1 revealed exit location to -4/Proximity Caves 9457 | -5/Warlord | X0-1V1 activates XOMVISION 9491 | -5/Warlord | Lost 4 allies 9516 | -5/Warlord | Found Prototype Energy Gun 9636 | -5/Warlord | Warlord base infiltrated, sounded retreat 9638 | -5/Warlord | Spotted Striker 9650 | -5/Warlord | Spotted Executioner 9670 | -5/Warlord | Spotted Striker 9710 | -5/Warlord | Found Prototype Launcher 9710 | -5/Warlord | Identified Chain Missile Launcher 9714 | -5/Warlord | Destroyed Executioner 9723 | -5/Warlord | Identified Vortex Chain Reactor 9727 | -5/Warlord | Found Chain Missile Launcher 9781 | -5/Warlord | Lost 13 allies 9799 | -5/Warlord | Destroyed 13 combat bots 9827 | -5/Warlord | Attacked by Warlord forces 9828 | -5/Warlord | Spotted RE-QPZ(K) 9831 | -5/Warlord | Entered Proximity Caves 9836 | -4/Proximity Caves | Lost 4 allies 9852 | -4/Proximity Caves | Murdered 3 allies 9953 | -4/Proximity Caves | X0-1V1 activates XOMVISION 9980 | -4/Proximity Caves | Build established: Scavenger-Tank 10585 | -4/Proximity Caves | Entered Factory 10585 | -4/Factory | Evolved 2 slots: Propulsion x2 10586 | -4/Factory | Identified exit to Research 10603 | -4/Factory | Identified exit to DSF 10737 | -4/Factory | Discovered exit to Research (range 14) 10819 | -4/Factory | Identified Ghost Barrier 10860 | -4/Factory | X0-1V1 revealed exit location to -3/Research 11108 | -4/Factory | Build established: Hacker-Tank 11352 | -4/Factory | Forcibly received Sfc. Transmogifier from X0-1V1 11502 | -4/Factory | Found Quantum Capacitor 11559 | -4/Factory | Loaded intel: 8 recycling unit locations 11568 | -4/Factory | X0-1V1 sent hostile Thug (x3) 11643 | -4/Factory | Destroyed 7 combat bots 11704 | -4/Factory | Destroyed 10 combat bots 11713 | -4/Factory | Lost 8 parts (1p3n2u2w) 11750 | -4/Factory | X0-1V1 announced a LAN party 11762 | -4/Factory | Spotted B-86 Titan 11792 | -4/Factory | Destroyed B-86 Titan 11819 | -4/Factory | Lost 3 parts (1p2u) 11874 | -4/Factory | X0-1V1 upgraded hostiles (x2) 11879 | -4/Factory | Core integrity fell below 50% 11901 | -4/Factory | Lost 5 parts (1p4n) 11964 | -4/Factory | Build established: Mutant 11981 | -4/Factory | Discovered new exit (range 13) 12009 | -4/Factory | X0-1V1 sent allied Striker (x1) 12085 | -4/Factory | First assault squad dispatched 12231 | -4/Factory | Entered Upper Caves 12359 | -4/Upper Caves | System corruption reached 10% 12441 | -4/Upper Caves | Learned Research security intel 12514 | -4/Upper Caves | X0-1V1 sent you into danger 12548 | -4/Upper Caves | X0-1V1 mutated your Weapon slot to Propulsion slot 12769 | -4/Upper Caves | Discovered new exit (range 16) 12793 | -4/Upper Caves | Entered another Upper Caves area 12793 | -4/Upper Caves | Discovered exit to Research (range 13) 12794 | -4/Upper Caves | NK-0LA showed up to help 12796 | -4/Upper Caves | NK-0LA revealed a hidden path 12813 | -4/Upper Caves | System corruption reached 30% 12825 | -4/Upper Caves | Entered Research 12825 | -3/Research | Evolved 2 slots: Power x1, Utility x1 12827 | -3/Research | Loaded intel: 90 machine locations 12835 | -3/Research | Build established: Scavenger-Mutant 12880 | -3/Research | X0-1V1 added 0b10 threat records associated with you (major) 12889 | -3/Research | Spotted B-86 Titan 12922 | -3/Research | X0-1V1 turns hostiles against one another 12948 | -3/Research | Loaded intel: 5 recycling unit locations 12955 | -3/Research | Destroyed B-86 Titan 13005 | -3/Research | Weapon slot count temporarily expanded by X0-1V1 (+3) 13034 | -3/Research | Lost 9 parts (2p2n3u2w) 13060 | -3/Research | Found Prototype Device 13061 | -3/Research | Identified Exp. Thermal Shield 13109 | -3/Research | Lost 4 parts (2p1u1w) 13132 | -3/Research | X0-1V1 activates XOMVISION 13166 | -3/Research | X0-1V1 sent hostile P-80 Master (x3) 13211 | -3/Research | Build established: Mutant 13230 | -3/Research | X0-1V1 added 0b10 threat records associated with you (major) 13325 | -3/Research | First assault squad dispatched 13329 | -3/Research | System corruption reached 10% 13469 | -3/Research | Spotted B-86 Titan 13480 | -3/Research | Core integrity fell below 50% 13562 | -3/Research | X0-1V1 redirected Transport squads to designated parking area 13648 | -3/Research | Lost 4 parts (2p1u1w) 13655 | -3/Research | X0-1V1 mutated your Propulsion slot to Weapon slot 13672 | -3/Research | X0-1V1 sent allied X-82 Rainmaker (x4) 13672 | -3/Research | Garrison activated, responded to threat 13679 | -3/Research | Identified exit to Testing 13707 | -3/Research | Core integrity fell below 20% 13717 | -3/Research | Destroyed by P-80 Master with Enhanced Quantum Rifle Last Messages --------------- S-43 Plague form resolidifies at new position. H-71 Marshal form resolidifies at new position. Y-72 Warden form resolidifies at new position. K-01 Serf form resolidifies at new position. S-43 Plague form resolidifies at new position. W-44 Eye form resolidifies at new position. Form resolidifies at new position. Y-72 Warden form resolidifies at new position. 13711_ Slug penetrates Y-72 Warden. 13711_ Penetrated by Slug. 13711_ Knocked back. 13711_ Terminal disabled. 13711_ Slug penetrates Terminal. 13711_ Slug penetrates Wall. 13713_ K-01 Serf collects debris. 13715_ Slammed into S-43 Plague. 13715_ X0-1V1's Piety Tracker broken. 13715_ Destabilizing: Short circuit. 13716_ Slammed into S-43 Plague. 13717_ X0-1V1 bursts into laughter! Map ----- +----------------------------------------------------+ | ""# / #???T??????????????????????????????? | | T"#%# +??""??????????????????????????????? | | ""# #?? #??????????????????????????????????? | | ""#%#???? #??????????????????????????????????? | | #%#?????? #???????????""""???????????????????? | | # #???????? #??????????"""""???????????????????? | | ### ###########???????????""""???????????????????? | | ???????""""???????????????????? | | ??????????????????????????????? | | ??????????????????????????????? | | ???????????????????????????????? | | ???????????????????????????????? | | #####+#####+## T#????????????????????????????????? | | #????????????????????????????????????????????????? | | #????????????????????????????????????????????????? | | #????????????????????????????????????????????????? | | #????????????????????????????????????????????????? | | #??""?""?????????????????????????????????????????? | | #??""T""?????????????????????????????????????????? | | #???"""??????????????????????????????????????????? | | ##########?###########???????????????????????????? | | # ????????????????????????????? | | # ????????????????????????????? | | # """" ?????????????????????????????? | | # ""F" ???######## ????????? | | # ????#s@ p ??>?????? | | ## # ??? ????#s###### ????????? | | # ###+####?#/#??### ###?????????????????????? | | # ### ##?# Y ###########???????????? | | / % ### "" # ! #???????????? | | # T + [ #???????????? | | # ### # #???????????? | | # ######?# # #???????????? | | ##########+###??????## ##?#########???????????? | | #??????? ????????# "##############????????? | | #????? ??????# ?????? | | #???# ????# % H ?????? | | #???# #???# ?????? | | #???# #???######+#########+##????????? | | #???# #??????????????????????????????? | | ##???# #??????????????????????????????? | | ?????# #??????????""""????????????????? | | ?????# #??????????""""????????????????? | | ?????# #??????????""""????????????????? | | ?????# #??????????""""????????????????? | | ?????# [ #??????????????????????????????? | | ?????##### """###??????????????????????????????? | | ??????????"" F""?????????????????????????????????? | | ??????????""""""?????????????????????????????????? | | ???????????""""??????????????????????????????????? | +----------------------------------------------------+ Best States ------------- Heat Dissipation 139 Coolant Potential 100 Energy Generation 55 Energy Capacity 2600 Matter Stores 1050 Matter Capacity 1100 Sight Range 20 Robot Scan Range 20 Terrain Scan Density 10 ECM Strength 3 Cloak Strength 4 Additional Mass Support 20 Armor Coverage 750 Resistance: KI 30 Resistance: TH 30 Resistance: EM 15 Core Shielding 10 Weapon Cycling 20 Phase Shifting 10 Evasion (%) 84 Targeting Accuracy 10 Launcher Accuracy 40 Target Analysis 6 Armor Integrity Analysis 40 Recoil Reduction 2 Matter Filtering 30 Offensive Hacking 10 Defensive Hacking 20 Item Schematics ----------------- None Robot Schematics ------------------ None Fabricated ------------ Q-thruster | x2 | -5/Factory | Preloaded Repaired ---------- Nothing Studied --------- Wheel | -4/Factory | Hacked Hvy. Treads | -4/Factory | Hacked Alien Tech Used ----------------- None Achievements -------------- None Challenges ------------ None Game ------ Seed MassOvertunedKinecellerator Manual? 0 Play Time 01:52:43 Cumulative 994.7 hours Start 2026.07.13 @ 23:20:22 End 2026.07.15 @ 19:21:42 Sessions 23 Manual Loads 0 Difficulty Rogue Special Mode None Game No. 1132 Rogue 1132 Adventurer 0 Explorer 0 Win Type - Total 45 Types 22/1/9/3/2/1/3/2/1/1 Lore% 98 Gallery% 97 Achievement% 93 Wizard Run 0 Options --------- Layout 2 ASCII 0 Keyboard 0 Movement Mouse Keybinds 0 Fullscreen 2 Font 24/X11 Map View 50x49 Zoom Use 0% Tactical HUD 1 Map Filters NONE Filters NONE Steam 1 RUN: 614c0943-faa2-47ec-a367-8b2c590f415a